bitfinex/quotes_SOLUSD_20250815
["timestamp","ask_amount","ask_price","bid_price","bid_amount"]
[1755300510377,1e-08,185.41,185.39,51.52609568]
[1755300510689,1e-08,185.41,185.38,79.2]
[1755300510859,12.03609568,185.4,185.38,79.2]
[1755300511057,0.67,185.4,185.39,40.16]
[1755300512655,1e-08,185.41,185.39,40.16]
[1755300512983,0.67000001,185.41,185.39,40.16]
[1755300513278,1e-08,185.41,185.39,56.91996124]
[1755300513684,1e-08,185.41,185.39,56.94996124]
[1755300514074,1e-08,185.41,185.39,45.58386556]
[1755300514266,1e-08,185.41,185.39,56.94996124]
[1755300515661,1e-08,185.41,185.39,45.58386556]
[1755300515871,0.67,185.4,185.39,0.03]
[1755300516084,12.03609568,185.4,185.39,40.17]
[1755300516475,0.67,185.4,185.39,40.17]
[1755300516680,4.2,185.4,185.39,40.17]
[1755300516887,4.2,185.4,185.39,45.56403419]
[1755300517093,1e-08,185.41,185.39,40.17]
[1755300517317,12.03609569,185.41,185.39,40.17]
[1755300517797,12.03609568,185.4,185.39,79.23]
[1755300518100,12.03609568,185.4,185.39,119.37]
[1755300518268,17.42983893,185.4,185.39,119.37]
[1755300519183,12.03609568,185.4,185.39,119.37]
[1755300519389,0.67,185.4,185.39,119.37]
[1755300519689,12.03609568,185.4,185.39,119.37]
[1755300520900,0.67,185.4,185.39,119.37]
[1755300521088,12.03609568,185.4,185.39,119.37]
[1755300521689,16.23609568,185.4,185.39,119.37]
[1755300522068,4.2,185.4,185.39,119.37]
[1755300522904,11.40731304,185.4,185.39,119.37]
[1755300523082,4.2,185.4,185.39,119.37]
[1755300524002,4.87,185.4,185.39,119.37]
[1755300524424,4.2,185.4,185.39,119.37]
[1755300526122,4.2,185.4,185.39,124.76403419]
[1755300526925,4.2,185.4,185.39,119.37]
[1755300527290,12.11731304,185.4,185.39,119.37]
[1755300527493,12.11731304,185.4,185.39,119.33]
[1755300527726,17.51105629,185.4,185.39,119.33]
[1755300528028,32.61727186,185.4,185.39,0.03]
[1755300528205,36.18653447,185.4,185.39,0.03]
[1755300529030,36.18653447,185.4,185.39,40.82]
[1755300529031,4.2,185.4,185.39,40.82]
[1755300529233,4.2,185.4,185.39,53.42134723]
[1755300529392,1e-08,185.41,185.39,53.42134723]
[1755300529598,1e-08,185.41,185.4,7.89731304]
[1755300529844,1e-08,185.41,185.4,13.29105629]
[1755300530132,0.06,185.45,185.4,26.77541443]
[1755300530313,0.06,185.45,185.44,7.20731304]
[1755300530504,0.06,185.45,185.44,47.30731304]
[1755300530708,0.06,185.45,185.44,47.99731304]
[1755300532008,0.06,185.45,185.44,53.38989285]
[1755300532625,0.06,185.45,185.44,57.52684998]
[1755300534437,0.06,185.47,185.45,79.14]
[1755300534617,0.06,185.47,185.46,51.42427017]
[1755300534814,0.06,185.47,185.46,52.11427017]
[1755300535118,0.06,185.47,185.46,131.25427017]
[1755300535701,0.06,185.47,185.46,136.64626844]
[1755300539014,0.06,185.47,185.46,125.30199827]
[1755300539206,0.06,185.47,185.46,136.64626844]
[1755300539831,0.06,185.47,185.46,79.14]
[1755300540003,0.06,185.47,185.43,16.206142]
[1755300540004,12.11427017,185.47,185.43,16.206142]
[1755300540200,11.34427017,185.44,185.43,16.206142]
[1755300540405,0.71,185.44,185.43,56.266142]
[1755300540633,0.71,185.44,185.43,40.06]
[1755300541444,12.05427017,185.44,185.43,40.06]
[1755300541834,4.91,185.44,185.43,40.06]
[1755300542009,10.30257981,185.44,185.39,0.03]
[1755300542215,11.34427017,185.41,185.4,40.06]
[1755300542414,12.05427017,185.41,185.4,40.06]
[1755300542745,0.71,185.41,185.4,40.06]
[1755300543610,4.2,185.44,185.4,52.09427017]
[1755300543807,0.06,185.47,185.43,11.34427017]
[1755300544070,0.06,185.47,185.46,11.34427017]
[1755300544214,0.06,185.47,185.46,40.06]
[1755300544624,0.06,185.47,185.46,40.75]
[1755300544830,0.77,185.47,185.46,40.06]
[1755300545035,17.50599313,185.47,185.43,119.18]
[1755300545217,12.05427017,185.46,185.43,119.18]
[1755300545411,0.71,185.45,185.43,40.04]
[1755300545829,3.57724289,185.46,185.43,40.04]
[1755300546145,0.06,185.47,185.45,11.34427017]
[1755300546444,0.06,185.47,185.46,52.07427017]
[1755300547229,0.06,185.47,185.46,57.46626844]
[1755300551516,0.06,185.47,185.46,56.77626844]
[1755300551849,0.06,185.47,185.46,57.46626844]
[1755300556322,0.06,185.49,185.47,79.08]
[1755300556524,0.06,185.49,185.48,45.41141686]
[1755300557852,0.06,185.49,185.48,56.75568703]
[1755300558346,0.06,185.49,185.48,136.50568703]
[1755300562244,0.06,185.51,185.5,5.39083557]
[1755300562444,0.06,185.51,185.5,56.73510574]
[1755300562644,0.06,185.51,185.5,52.58730337]
[1755300563855,0.76,185.51,185.5,40.0]
[1755300564760,0.76,185.51,185.5,119.02]
[1755300565147,0.06,185.51,185.5,132.27730337]
[1755300565964,0.06,185.51,185.5,131.60730337]
[1755300567940,0.06,185.51,185.5,132.27730337]
[1755300570172,0.06,185.53,185.52,26.0]
[1755300570469,0.06,185.53,185.52,65.98]
[1755300571161,0.76,185.53,185.52,39.98]
[1755300572177,0.76,185.53,185.52,45.37025442]
[1755300572344,0.06,185.53,185.52,45.37025442]
[1755300573066,1e-08,185.53,185.52,53.23672222]
[1755300573536,1e-08,185.53,185.52,60.43319022]
[1755300576151,1e-08,185.53,185.52,75.53940579]
[1755300577077,0.7,185.62,185.57,78.95999999]
[1755300577379,0.7,185.61,185.59,7.1964678]
[1755300577548,0.7,185.61,185.6,39.96]
[1755300577871,3.57368361,185.64,185.6,39.96]
[1755300578346,8.96052022,185.64,185.6,39.96]
[1755300578543,0.7,185.63,185.6,39.96]
[1755300581754,13.28372481,185.63,185.61,39.94]
[1755300581973,7.8964678,185.62,185.61,39.94]
[1755300582272,0.7,185.62,185.6,118.89999999]
[1755300582461,0.7,185.61,185.6,118.89999999]
[1755300585372,0.7,185.61,185.6,78.95999999]
[1755300585572,0.7,185.61,185.6,118.87999999]
[1755300589457,0.7,185.63,185.6,118.87999999]
[1755300589660,15.10621557,185.63,185.6,118.87999999]
[1755300589859,0.7,185.62,185.6,118.87999999]
[1755300592290,0.7,185.64,185.6,132.17426522]
[1755300595285,0.7,185.64,185.6,131.46426522]
[1755300595491,0.7,185.64,185.61,0.71]
[1755300595680,0.7,185.64,185.62,39.9]
[1755300596368,0.06,185.66,185.63,7.9064678]
[1755300596683,0.06,185.66,185.64,47.7864678]
[1755300596859,0.06,185.66,185.65,7.1964678]
[1755300597054,0.06,185.66,185.65,86.15646779]
[1755300598264,0.06,185.66,185.65,78.95999999]
[1755300598471,0.06,185.66,185.64,118.83999999]
[1755300598472,7.9564678,185.66,185.64,118.83999999]
[1755300598700,0.7,185.65,185.64,118.83999999]
[1755300599205,0.06,185.66,185.64,118.83999999]
[1755300599588,1e-08,185.66,185.65,0.71]
[1755300599792,0.63281415,185.8,185.68,26.0]
[1755300600012,15.10621557,185.78,185.69,40.59]
[1755300600303,0.63281415,185.8,185.77,7.1964678]
[1755300600478,0.63281415,185.8,185.78,0.71]
[1755300600801,0.63281415,185.8,185.78,40.59]
[1755300601298,8.52928195,185.8,185.78,39.88]
[1755300601488,22.30268337,185.79,185.75,0.71]
[1755300601703,7.1964678,185.77,185.72,0.71]
[1755300601876,0.7,185.77,185.73,47.0564678]
[1755300602076,7.1964678,185.76,185.73,39.86]
[1755300602302,7.1964678,185.74,185.72,39.86]
[1755300602478,13.28004788,185.75,185.72,39.86]
[1755300602806,7.1964678,185.73,185.72,39.86]
[1755300602979,7.8964678,185.73,185.72,39.86]
[1755300603603,7.8964678,185.73,185.7,39.86]
[1755300604475,13.28076686,185.73,185.7,39.86]
[1755300604671,0.7,185.73,185.7,39.86]
[1755300604916,15.10621557,185.74,185.7,40.57]
[1755300605203,22.30268337,185.76,185.71,0.71]
[1755300605581,23.00268337,185.76,185.71,0.71]
[1755300606207,23.00268337,185.76,185.7,52.44140998]
[1755300606208,7.1964678,185.73,185.7,39.86]
[1755300606430,7.1964678,185.71,185.65,0.71]
[1755300606723,7.1964678,185.69,185.66,39.86]
[1755300606882,7.8964678,185.69,185.66,39.86]
[1755300607383,15.10621557,185.73,185.68,7.1964678]
[1755300607586,38.58055812,185.74,185.68,47.0364678]
[1755300607789,38.58055812,185.74,185.69,0.71]
[1755300607999,39.28055812,185.74,185.69,79.66999999]
[1755300608310,48.30268337,185.75,185.7,53.13133752]
[1755300608510,49.00268337,185.75,185.7,53.13133752]
[1755300608813,7.1964678,185.76,185.71,7.9064678]
[1755300608986,0.06,185.78,185.75,7.1964678]
[1755300609307,0.06,185.78,185.77,7.1964678]
[1755300609503,0.06,185.78,185.77,47.0364678]
[1755300609705,13.3393013,185.78,185.71,0.71]
[1755300610007,7.1964678,185.74,185.72,39.84]
[1755300610209,7.1964678,185.75,185.72,39.84]
[1755300610788,11.31561552,185.75,185.72,39.84]
[1755300612002,11.31561552,185.73,185.72,39.84]
[1755300612203,12.01561552,185.73,185.7,39.84]
[1755300612508,11.31561552,185.71,185.7,39.84]
[1755300612700,11.31561552,185.72,185.7,39.84]
[1755300613898,16.69985247,185.73,185.7,39.84]
[1755300614710,11.31561552,185.72,185.7,39.84]
[1755300615011,11.31561552,185.71,185.7,119.04]
[1755300615507,12.03561552,185.71,185.66,79.91]
[1755300615706,5.38423695,185.73,185.64,11.31561552]
[1755300615707,11.31561552,185.68,185.67,39.82]
[1755300616090,11.31561552,185.69,185.67,39.82]
[1755300616813,16.70111283,185.69,185.67,39.82]
[1755300617027,12.03561552,185.68,185.62,0.03]
[1755300617201,11.31561552,185.64,185.63,39.82]
[1755300617398,11.31561552,185.64,185.62,0.03]
[1755300617596,11.31561552,185.63,185.62,0.03]
[1755300618601,27.14183109,185.63,185.62,0.03]
[1755300618804,32.52889137,185.63,185.62,0.03]
[1755300619185,36.09439488,185.63,185.62,0.03]
[1755300619616,40.0559733,185.63,185.62,1e-08]
[1755300619819,15.10621557,185.58,185.53,39.85]
[1755300620120,26.42183109,185.54,185.53,0.03]
[1755300620616,27.14183109,185.54,185.53,0.03]
[1755300620915,32.53150447,185.54,185.53,0.03]
[1755300624416,32.53150447,185.54,185.51,0.03]
[1755300624417,15.10621557,185.53,185.51,0.03]
[1755300624618,41.10621557,185.52,185.51,0.03]
[1755300624825,41.10621557,185.53,185.51,0.03]
[1755300625026,52.42183109,185.53,185.51,0.03]
[1755300625715,9.58980487,185.54,185.52,0.66]
[1755300625716,4.2,185.54,185.52,0.66]
[1755300625915,4.2,185.54,185.53,11.31561552]
[1755300626118,0.72,185.61,185.53,11.31561552]
[1755300626119,26.42183109,185.6,185.53,11.97561552]
[1755300626293,15.10621557,185.6,185.51,0.03]
[1755300626498,52.42183109,185.6,185.54,11.97561552]
[1755300627219,26.42183109,185.6,185.54,11.97561552]
[1755300627526,52.42183109,185.6,185.55,5.38938291]
[1755300627741,57.80981742,185.6,185.55,0.66]
[1755300628018,57.80981742,185.6,185.51,0.03]
[1755300628019,11.31561552,185.56,185.51,0.03]
[1755300628208,11.31561552,185.52,185.51,0.03]
[1755300628617,27.14183109,185.52,185.51,0.03]
[1755300629516,32.53208551,185.52,185.51,0.03]
[1755300629903,31.81208551,185.52,185.51,0.03]
[1755300630719,32.53208551,185.52,185.51,0.03]
[1755300632007,26.42183109,185.52,185.51,0.03]
[1755300632317,26.0,185.54,185.51,0.69]
[1755300632628,52.42183109,185.56,185.51,12.00561552]
[1755300632921,57.81100443,185.56,185.52,0.66]
[1755300633121,11.31561552,185.53,185.51,0.03]
[1755300633422,11.31561552,185.52,185.51,0.03]
[1755300634011,11.31561552,185.53,185.51,0.03]
[1755300634316,0.72,185.55,185.51,0.03]
[1755300634519,11.31561552,185.53,185.51,0.03]
[1755300634710,4.2,185.52,185.51,0.03]
[1755300636326,4.2,185.52,185.51,0.69]
[1755300637398,4.2,185.52,185.51,0.03]
[1755300637821,4.2,185.52,185.51,0.69]
[1755300638025,4.2,185.52,185.51,17.3961605]
[1755300638208,4.2,185.52,185.51,96.5961605]
[1755300638408,2.76,185.52,185.51,96.5961605]
[1755300638607,2.76,185.52,185.51,85.28054498]
[1755300638805,2.76,185.52,185.51,130.34561552]
[1755300639021,2.76,185.52,185.51,135.7361605]
[1755300639218,37.37561552,185.58,185.51,135.7361605]
[1755300639525,11.31561552,185.57,185.52,11.31561552]
[1755300639824,0.72,185.56,185.52,11.31561552]
[1755300640008,0.72,185.56,185.51,124.42054498]
[1755300640205,0.72,185.56,185.51,130.34561552]
[1755300641833,0.78,185.56,185.51,135.73605763]
[1755300642212,11.31561552,185.54,185.51,119.03]
[1755300642434,0.72,185.53,185.51,119.03]
[1755300642934,11.31561552,185.54,185.51,119.03]
[1755300643119,12.03561552,185.54,185.51,119.03]
[1755300643623,12.09561552,185.56,185.51,124.42040605]
[1755300643802,0.06,185.56,185.53,11.31561552]
[1755300644224,0.06,185.56,185.52,11.31561552]
[1755300644605,0.72,185.55,185.51,119.03]
[1755300644929,12.03561552,185.55,185.51,119.03]
[1755300645233,12.03561552,185.54,185.51,119.03]
[1755300645927,11.31561552,185.55,185.51,119.03]
[1755300646412,0.66,185.55,185.51,119.03]
[1755300646621,11.37561552,185.56,185.51,135.73607986]
[1755300647312,15.76621557,185.55,185.51,0.03]
[1755300647518,11.31561552,185.52,185.51,0.03]
[1755300648030,17.36586994,185.52,185.51,0.03]
[1755300648213,32.47208551,185.52,185.51,0.03]
[1755300650645,41.10621557,185.49,185.48,0.03]
[1755300650934,55.96196685,185.49,185.47,0.2]
[1755300651119,15.51575128,185.48,185.47,0.2]
[1755300651306,41.10621557,185.47,185.46,0.03]
[1755300651507,26.42183109,185.46,185.45,0.03]
[1755300651714,74.33448031,185.46,185.45,0.03]
[1755300652544,39.94647858,185.46,185.45,1e-08]
[1755300652741,98.25382936,185.46,185.45,1e-08]
[1755300652909,101.79262451,185.46,185.45,1e-08]
[1755300653440,98.25382936,185.46,185.45,1e-08]
[1755300653612,58.47382936,185.46,185.45,1e-08]
[1755300654005,53.08183109,185.46,185.45,1e-08]
[1755300654204,58.47382936,185.46,185.45,1e-08]
[1755300654740,62.01501261,185.46,185.45,1e-08]
[1755300654949,65.94968395,185.46,185.43,0.03]
[1755300655112,11.31561552,185.44,185.43,0.03]
[1755300655312,80.63679877,185.44,185.43,0.03]
[1755300655512,77.75561552,185.44,185.43,0.03]
[1755300655823,81.29773398,185.44,185.43,0.03]
[1755300656752,101.79652936,185.44,185.43,0.03]
[1755300656916,105.73435721,185.44,185.43,0.03]
[1755300658553,105.73847931,185.44,185.43,0.03]
[1755300659232,110.16458157,185.44,185.43,0.03]
[1755300659612,105.73847931,185.44,185.43,0.03]
[1755300660132,49.25028398,185.44,185.43,0.03]
[1755300660338,99.6858995,185.44,185.43,0.03]
[1755300660539,105.07847931,185.44,185.43,0.03]
[1755300660919,105.73847931,185.44,185.43,0.03]
[1755300661123,46.49937704,185.42,185.41,0.03]
[1755300661317,41.10621557,185.4,185.39,0.03]
[1755300661623,104.12862693,185.4,185.39,0.03]
[1755300661813,60.5658995,185.4,185.39,0.03]
[1755300662009,100.3458995,185.4,185.39,0.03]
[1755300663045,105.73964275,185.4,185.39,0.03]
[1755300663422,105.75146015,185.4,185.39,0.03]
[1755300663628,105.75143423,185.4,185.39,0.03]
[1755300664537,110.19382165,185.4,185.39,0.03]
[1755300665445,15.10621557,185.38,185.35,0.03]
[1755300665623,104.1379984,185.37,185.35,0.03]
[1755300665814,104.7979984,185.37,185.35,0.03]
[1755300666018,104.7979984,185.37,185.36,1e-08]
[1755300666414,59.91769098,185.37,185.36,1e-08]
[1755300666834,48.60207546,185.37,185.36,1e-08]
[1755300667042,65.31230715,185.37,185.36,1e-08]
[1755300667239,65.97230715,185.37,185.36,1e-08]
[1755300667459,105.75230715,185.37,185.36,1e-08]
[1755300667632,105.09230715,185.37,185.36,1e-08]
[1755300668431,59.91769098,185.37,185.36,1e-08]
[1755300668636,44.66012551,185.37,185.36,1e-08]
[1755300668835,65.31224743,185.37,185.36,1e-08]
[1755300669429,105.7511531,185.37,185.36,1e-08]
[1755300672156,107.9146601,185.37,185.36,1e-08]
[1755300676336,103.9738642,185.37,185.36,1e-08]
[1755300676745,107.90644219,185.37,185.36,1e-08]
[1755300677464,103.9738642,185.37,185.36,1e-08]
[1755300677959,26.0,185.34,185.33,0.03]
[1755300678147,41.10621557,185.3,185.29,1e-08]
[1755300678355,88.36829112,185.3,185.29,1e-08]
[1755300678529,88.36829112,185.3,185.27,0.03]
[1755300678530,15.10621557,185.29,185.28,1e-08]
[1755300678735,33.90390664,185.29,185.28,1e-08]
[1755300678937,34.58390664,185.29,185.28,1e-08]
[1755300679447,36.74823364,185.29,185.28,1e-08]
[1755300679645,42.14517896,185.29,185.28,1e-08]
[1755300680149,42.14131907,185.29,185.28,1e-08]
[1755300681041,41.46131907,185.29,185.28,1e-08]
[1755300681238,97.57877641,185.29,185.28,1e-08]
[1755300681545,71.57877641,185.29,185.28,1e-08]
[1755300683147,101.78821881,185.29,185.28,1e-08]
[1755300683473,105.02904459,185.29,185.28,1e-08]
[1755300683645,101.78821881,185.29,185.28,1e-08]
[1755300683965,79.70922763,185.29,185.28,1e-08]
[1755300684539,79.70922763,185.29,185.25,0.03]
[1755300684540,41.10621557,185.26,185.25,0.03]
[1755300684740,105.02917084,185.26,185.25,0.03]
[1755300684939,105.70917084,185.26,185.25,0.03]
[1755300685361,105.70602334,185.26,185.25,1e-08]
[1755300685868,65.94602334,185.26,185.25,1e-08]
[1755300686039,105.02602334,185.26,185.25,1e-08]
[1755300686463,105.70602334,185.26,185.25,1e-08]
[1755300686972,105.02602334,185.26,185.25,1e-08]
[1755300687340,105.70602334,185.26,185.25,1e-08]
[1755300687572,15.10621557,185.25,185.24,1e-08]
[1755300687741,15.10621557,185.25,185.23,0.03]
[1755300687742,34.54820406,185.25,185.23,1e-08]
[1755300688059,37.31561552,185.24,185.23,1e-08]
[1755300688260,77.07561552,185.24,185.23,1e-08]
[1755300688462,99.62962847,185.24,185.23,1e-08]
[1755300688637,29.52766591,185.24,185.23,0.16000001]
[1755300688844,15.10621557,185.25,185.23,0.16000001]
[1755300689268,15.10621557,185.26,185.23,0.16000001]
[1755300689649,26.42183109,185.24,185.23,1e-08]
[1755300689853,15.10621557,185.25,185.23,0.16000001]
[1755300690264,15.10621557,185.25,185.23,1e-08]
[1755300690572,15.10621557,185.24,185.23,1e-08]
[1755300691276,18.63962967,185.24,185.23,1e-08]
[1755300692778,26.0,185.27,185.23,11.47561553]
[1755300692974,5.08786863,185.33,185.26,16.71326547]
[1755300693281,5.08786863,185.33,185.26,11.47561552]
[1755300693282,15.10621557,185.3,185.26,11.47561552]
[1755300693453,15.10621557,185.3,185.26,5.39780482]
[1755300693659,15.10621557,185.31,185.27,11.47561552]
[1755300693881,3.53977713,185.3,185.27,11.47561552]
[1755300694182,3.53977713,185.29,185.27,11.47561552]
[1755300694486,3.53977713,185.3,185.28,11.47561552]
[1755300694786,3.53977713,185.34,185.29,11.47561552]
[1755300694957,3.53977713,185.33,185.31,16.71197837]
[1755300695158,3.53977713,185.35,185.32,11.47561552]
[1755300695357,3.53977713,185.34,185.32,11.47561552]
[1755300695569,54.86621557,185.36,185.32,11.31561552]
[1755300695570,3.53977713,185.33,185.32,11.31561552]
[1755300695753,3.53977713,185.35,185.32,11.31561552]
[1755300695976,15.10621557,185.35,185.33,11.47561552]
[1755300696162,3.54641281,185.34,185.33,11.47561552]
[1755300696597,3.54641281,185.36,185.33,11.47561552]
[1755300696895,0.06,185.37,185.35,11.31561552]
[1755300697098,0.06,185.37,185.36,16.71052272]
[1755300697269,0.06,185.37,185.36,16.87052272]
[1755300699365,0.06,185.37,185.34,11.31561552]
[1755300699366,3.61048371,185.37,185.34,11.31561552]
[1755300699570,3.55048371,185.36,185.31,11.31561552]
[1755300699784,3.55048371,185.35,185.25,0.16]
[1755300700093,3.55048371,185.35,185.26,11.31561552]
[1755300700094,11.31561552,185.32,185.26,11.31561552]
[1755300700296,3.55048371,185.31,185.26,11.31561552]
[1755300700459,3.55033303,185.31,185.26,11.31561552]
[1755300700663,3.55033303,185.3,185.26,11.47561552]
[1755300700889,3.55033303,185.31,185.26,11.47561552]
[1755300701091,16.71184053,185.32,185.27,11.31561552]
[1755300701263,15.10621557,185.3,185.27,11.31561552]
[1755300701758,15.10621557,185.31,185.28,11.31561552]
[1755300701961,15.10621557,185.31,185.29,11.31561552]
[1755300701962,19.30621557,185.31,185.29,11.31561552]
[1755300702294,19.30621557,185.31,185.28,11.31561552]
[1755300704604,19.98621557,185.31,185.25,0.16]
[1755300704809,11.31561552,185.29,185.24,11.31561552]
[1755300704968,15.10621557,185.29,185.25,11.31561552]
[1755300705489,21.16324804,185.29,185.23,5.39846353]
[1755300705668,21.16324804,185.29,185.25,11.31561552]
[1755300706085,4.2,185.31,185.28,11.31561552]
[1755300706274,4.2,185.31,185.3,11.31561552]
[1755300707083,4.2,185.31,185.29,11.31561552]
[1755300707660,15.10621557,185.3,185.29,11.31561552]
[1755300707881,15.10621557,185.3,185.23,13.4967338]
[1755300707882,15.10621557,185.3,185.27,11.31561552]
[1755300708078,4.26,185.31,185.29,11.31561552]
[1755300708286,4.26,185.31,185.3,11.47561552]
[1755300708494,4.26,185.31,185.3,11.31561552]
[1755300708691,19.36621557,185.31,185.25,79.36]
[1755300708902,19.36621557,185.31,185.28,11.31561552]
[1755300710302,15.76621557,185.3,185.27,11.31561552]
[1755300710669,0.66,185.29,185.24,118.92]
[1755300711315,0.66,185.29,185.26,11.31561552]
[1755300711495,4.26,185.31,185.28,11.31561552]
[1755300711902,15.10621557,185.29,185.26,11.31561552]
[1755300712275,15.10621557,185.29,185.27,11.31561552]
[1755300713573,15.10621557,185.29,185.26,11.31561552]
[1755300713892,15.76621557,185.29,185.26,11.31561552]
[1755300714705,4.26,185.31,185.28,11.31561552]
[1755300715001,4.92,185.31,185.26,5.39778185]
[1755300715213,15.76621557,185.3,185.27,11.31561552]
[1755300715372,0.66,185.29,185.23,26.00000001]
[1755300715690,26.0,185.28,185.24,11.31561552]
[1755300715873,26.66,185.28,185.24,11.31561552]
[1755300716072,26.66,185.28,185.25,11.31561552]
[1755300716474,15.76621557,185.27,185.23,11.31561553]
[1755300716698,21.16380674,185.27,185.23,11.31561553]
[1755300716995,20.50380674,185.27,185.23,1e-08]
[1755300717178,21.16380674,185.27,185.23,11.31561553]
[1755300718110,15.76621557,185.27,185.23,11.31561553]
[1755300718312,4.26,185.31,185.23,11.31561553]
[1755300718313,4.26,185.31,185.26,11.31561552]
[1755300718490,4.26,185.31,185.28,11.31561552]
[1755300718684,4.92,185.31,185.28,11.31561552]
[1755300718884,4.26,185.31,185.28,11.31561552]
[1755300719108,4.92,185.31,185.28,11.31561552]
[1755300719522,30.26,185.31,185.3,11.31561552]
[1755300719703,30.26,185.31,185.27,5.39729707]
[1755300719704,30.26,185.31,185.29,11.31561552]
[1755300720101,30.26,185.31,185.27,5.39729707]
[1755300720102,4.26,185.31,185.3,11.31561552]
[1755300720412,4.26,185.31,185.3,11.47561552]
[1755300720786,0.06,185.31,185.3,5.39665407]
[1755300721013,0.06,185.31,185.3,16.71226959]
[1755300721207,0.06,185.31,185.3,16.87226959]
[1755300721789,0.06,185.31,185.3,16.71226959]
[1755300722014,0.06,185.31,185.3,16.87226959]
[1755300722619,4.26,185.31,185.3,16.87226959]
[1755300722822,1e-08,185.31,185.3,17.41193499]
[1755300723032,0.06,185.33,185.3,17.41193499]
[1755300723325,0.06,185.33,185.32,11.31561552]
[1755300723709,0.06,185.33,185.32,11.47561552]
[1755300724224,0.06,185.33,185.32,51.17561552]
[1755300724921,0.06,185.33,185.32,56.57168717]
[1755300725625,0.06,185.33,185.32,56.41168717]
[1755300726006,0.06,185.33,185.32,51.01561552]
[1755300726538,0.72,185.33,185.32,79.2]
[1755300727202,6.11578049,185.33,185.3,79.2]
[1755300727411,15.10621557,185.3,185.25,11.31561552]
[1755300727717,11.97561552,185.29,185.24,11.31561552]
[1755300727918,0.66,185.28,185.23,51.01561553]
[1755300728146,0.66,185.28,185.25,11.31561552]
[1755300728508,26.0,185.29,185.25,11.31561552]
[1755300728509,0.66,185.27,185.25,11.31561552]
[1755300729543,26.66,185.29,185.25,16.71368295]
[1755300729697,0.66,185.28,185.25,11.31561552]
[1755300729901,0.66,185.27,185.24,16.71396688]
[1755300731217,0.66,185.27,185.25,11.31561552]
[1755300732133,26.0,185.29,185.25,11.31561552]
[1755300732341,0.66,185.28,185.25,11.31561552]
[1755300732634,0.66,185.27,185.25,90.51561552]
[1755300732831,26.66,185.29,185.25,90.51561552]
[1755300733347,0.66,185.28,185.25,90.51561552]
[1755300733539,0.66,185.28,185.25,95.91369374]
[1755300734728,0.72,185.33,185.27,11.31561552]
[1755300734920,0.72,185.33,185.26,39.84]
[1755300735120,0.72,185.33,185.3,11.31561552]
[1755300735519,0.67,185.32,185.3,11.31561552]
[1755300736122,0.67,185.32,185.29,50.99561552]
[1755300736322,0.67,185.32,185.29,56.39252605]
[1755300736523,0.06,185.33,185.3,11.31561552]
[1755300736928,0.73,185.33,185.3,11.31561552]
[1755300737720,0.73,185.33,185.3,16.7122398]
[1755300737923,0.67,185.32,185.29,45.07687237]
[1755300738141,0.67,185.32,185.29,50.99561552]
[1755300738339,26.42183109,185.3,185.24,16.71394011]
[1755300738522,11.31561552,185.28,185.24,39.68]
[1755300738847,0.67,185.27,185.24,39.68]
[1755300739348,0.67,185.26,185.24,39.68]
[1755300739841,0.67,185.26,185.23,1e-08]
[1755300739842,41.77621557,185.3,185.25,50.99561552]
[1755300740036,15.10621557,185.29,185.25,50.99561552]
[1755300740218,15.77621557,185.29,185.25,50.99561552]
[1755300741043,0.67,185.29,185.26,11.31561552]
[1755300741214,15.10621557,185.3,185.28,0.03]
[1755300741420,15.77621557,185.3,185.28,0.03]
[1755300744342,11.31561552,185.32,185.28,0.03]
[1755300744543,15.10621557,185.31,185.28,11.34561552]
[1755300744752,0.67,185.3,185.28,0.03]